[Event "Late-Titled-Tuesday-Blitz-April-23-2024"]
[Site "Chess.com"]
[Date "2024.04.23"]
[Round "3"]
[White "ArtemDyachuk"]
[Black "Hrant_ChessMood"]
[Result "1/2-1/2"]
[WhiteElo "2742"]
[BlackElo "2955"]
[TimeControl "180+1"]
[EndTime "14:32:55 PDT"]
[Termination "Game drawn by repetition"]

1. d4 {[%clk 0:03:00.9]} 1... Nf6 {[%clk 0:02:57.8]} 2. c4 {[%clk 0:03:01.4]}
2... g6 {[%clk 0:02:58.2]} 3. Nc3 {[%clk 0:03:01.4]} 3... Bg7 {[%clk 0:02:58.6]}
4. e4 {[%clk 0:03:00.4]} 4... d6 {[%clk 0:02:59.3]} 5. Be2 {[%clk 0:03:00.5]}
5... O-O {[%clk 0:02:59]} 6. Bg5 {[%clk 0:03:01.1]} 6... Na6 {[%clk 0:02:39.8]}
7. Nf3 {[%clk 0:03:00.2]} 7... e5 {[%clk 0:02:29.1]} 8. O-O {[%clk 0:02:27.9]}
8... h6 {[%clk 0:02:14.5]} 9. Bh4 {[%clk 0:02:24.1]} 9... g5 {[%clk 0:02:03.4]}
10. Bg3 {[%clk 0:02:20.3]} 10... Nh5 {[%clk 0:02:03.1]} 11. dxe5 {[%clk
0:01:38.9]} 11... Nxg3 {[%clk 0:02:02.8]} 12. fxg3 {[%clk 0:01:39.8]} 12... dxe5
{[%clk 0:01:56.1]} 13. Qc2 {[%clk 0:01:29.4]} 13... c6 {[%clk 0:01:52.7]} 14.
Kh1 {[%clk 0:01:29]} 14... Nc5 {[%clk 0:01:50.4]} 15. Ng1 {[%clk 0:01:24.2]}
15... Ne6 {[%clk 0:01:49.1]} 16. Bh5 {[%clk 0:01:23.4]} 16... Nd4 {[%clk
0:01:46.7]} 17. Qf2 {[%clk 0:01:23.4]} 17... Be6 {[%clk 0:01:45.6]} 18. b3
{[%clk 0:01:18.7]} 18... a5 {[%clk 0:01:43.4]} 19. Rad1 {[%clk 0:01:14.5]} 19...
Qe7 {[%clk 0:01:42.8]} 20. Nge2 {[%clk 0:01:04.8]} 20... Rad8 {[%clk 0:01:37.2]}
21. g4 {[%clk 0:00:56.7]} 21... Rd7 {[%clk 0:01:28.4]} 22. Ng3 {[%clk
0:00:55.9]} 22... Rfd8 {[%clk 0:01:18.8]} 23. Nf5 {[%clk 0:00:51.3]} 23... Qf8
{[%clk 0:01:13.1]} 24. Na4 {[%clk 0:00:26.4]} 24... Nxf5 {[%clk 0:00:59]} 25.
gxf5 {[%clk 0:00:27.3]} 25... Rxd1 {[%clk 0:00:56.2]} 26. Bxd1 {[%clk
0:00:25.5]} 26... Bc8 {[%clk 0:00:55.5]} 27. f6 {[%clk 0:00:22.2]} 27... Bh8
{[%clk 0:00:55.4]} 28. c5 {[%clk 0:00:20.6]} 28... Be6 {[%clk 0:00:44.6]} 29.
Nb6 {[%clk 0:00:20.3]} 29... Rd4 {[%clk 0:00:42.9]} 30. Qe1 {[%clk 0:00:12.4]}
30... Qd8 {[%clk 0:00:42.8]} 31. Bh5 {[%clk 0:00:12.2]} 31... Bxf6 {[%clk
0:00:42.4]} 32. Qf2 {[%clk 0:00:12.5]} 32... Kg7 {[%clk 0:00:40.8]} 33. h3
{[%clk 0:00:12.6]} 33... Rxe4 {[%clk 0:00:40.8]} 34. Nc4 {[%clk 0:00:05.5]}
34... Rf4 {[%clk 0:00:40.1]} 35. Qe2 {[%clk 0:00:05.4]} 35... Rxf1+ {[%clk
0:00:33.6]} 36. Qxf1 {[%clk 0:00:05.8]} 36... Bxc4 {[%clk 0:00:16.1]} 37. Qxc4
{[%clk 0:00:06.7]} 37... Qd5 {[%clk 0:00:12.1]} 38. Qxd5 {[%clk 0:00:02.2]}
38... cxd5 {[%clk 0:00:11.8]} 39. Bg4 {[%clk 0:00:03.1]} 39... Be7 {[%clk
0:00:11.2]} 40. Bc8 {[%clk 0:00:03.3]} 40... Bxc5 {[%clk 0:00:10.3]} 41. Bxb7
{[%clk 0:00:03.8]} 41... d4 {[%clk 0:00:11]} 42. Be4 {[%clk 0:00:04.4]} 42...
Kf6 {[%clk 0:00:03.5]} 43. g4 {[%clk 0:00:04.7]} 43... Ke6 {[%clk 0:00:04.2]}
44. Kg2 {[%clk 0:00:05.4]} 44... Kd6 {[%clk 0:00:04.9]} 45. Kf1 {[%clk
0:00:05.8]} 45... Ba3 {[%clk 0:00:04.4]} 46. Ke2 {[%clk 0:00:05.1]} 46... Kc5
{[%clk 0:00:05.3]} 47. Kd3 {[%clk 0:00:05.7]} 47... Kb4 {[%clk 0:00:06.2]} 48.
Bf5 {[%clk 0:00:05.7]} 48... Bc1 {[%clk 0:00:06.1]} 49. Be4 {[%clk 0:00:05.3]}
49... Bf4 {[%clk 0:00:06]} 50. Bd5 {[%clk 0:00:03]} 50... f6 {[%clk 0:00:04.3]}
51. a4 {[%clk 0:00:02.4]} 51... Kc5 {[%clk 0:00:04]} 52. Bc4 {[%clk 0:00:02.7]}
52... Bg3 {[%clk 0:00:03.8]} 53. Bg8 {[%clk 0:00:02.9]} 53... Kd6 {[%clk
0:00:04.1]} 54. Bc4 {[%clk 0:00:03.4]} 54... Ke7 {[%clk 0:00:04.7]} 55. Ke4
{[%clk 0:00:03.5]} 55... Kd6 {[%clk 0:00:04.5]} 56. Bd3 {[%clk 0:00:03.2]} 56...
Kc5 {[%clk 0:00:04.9]} 57. Bc4 {[%clk 0:00:03]} 57... Bf4 {[%clk 0:00:05.4]} 58.
Bf7 {[%clk 0:00:02.4]} 58... Kb4 {[%clk 0:00:04.4]} 59. Kd3 {[%clk 0:00:02.8]}
59... Ka3 {[%clk 0:00:05.3]} 60. Kc2 {[%clk 0:00:02.8]} 60... Bg3 {[%clk
0:00:04.7]} 61. Bd5 {[%clk 0:00:02.5]} 61... Be1 {[%clk 0:00:04.8]} 62. Be4
{[%clk 0:00:02.7]} 62... Kb4 {[%clk 0:00:04.5]} 63. Bg6 {[%clk 0:00:01.9]} 63...
Bg3 {[%clk 0:00:03]} 64. Be4 {[%clk 0:00:02.3]} 64... Kc5 {[%clk 0:00:03.3]} 65.
Kd3 {[%clk 0:00:02]} 65... Kd6 {[%clk 0:00:02.7]} 66. Kc4 {[%clk 0:00:01.4]}
66... Ke6 {[%clk 0:00:02.5]} 67. Bf5+ {[%clk 0:00:02]} 67... Kf7 {[%clk
0:00:03]} 68. Be4 {[%clk 0:00:02.9]} 68... Kg7 {[%clk 0:00:02.5]} 69. Bf5 {[%clk
0:00:03.4]} 69... h5 {[%clk 0:00:02.8]} 70. Kd3 {[%clk 0:00:03.4]} 70... Kf7
{[%clk 0:00:02.5]} 71. Kc4 {[%clk 0:00:03.6]} 71... Be1 {[%clk 0:00:02.5]} 72.
Kd5 {[%clk 0:00:02.4]} 72... Kg7 {[%clk 0:00:01.4]} 73. Kc4 {[%clk 0:00:02.5]}
73... Bb4 {[%clk 0:00:02.1]} 74. Kd5 {[%clk 0:00:02.8]} 74... Kh6 {[%clk
0:00:02.5]} 75. Kc4 {[%clk 0:00:03]} 75... hxg4 {[%clk 0:00:02.1]} 76. hxg4
{[%clk 0:00:03.9]} 76... Kg7 {[%clk 0:00:02.8]} 77. Kd5 {[%clk 0:00:04.5]} 77...
Kf7 {[%clk 0:00:03.7]} 78. Be4 {[%clk 0:00:05]} 78... Ke7 {[%clk 0:00:04.6]} 79.
Bf5 {[%clk 0:00:05.5]} 79... Kd8 {[%clk 0:00:04.9]} 80. Kc6 {[%clk 0:00:04.2]}
80... Ke8 {[%clk 0:00:04.4]} 81. Kd5 {[%clk 0:00:03.9]} 81... Be1 {[%clk
0:00:04.9]} 82. Ke6 {[%clk 0:00:02.6]} 82... Kd8 {[%clk 0:00:05.2]} 83. Kxf6
{[%clk 0:00:02]} 83... Bg3 {[%clk 0:00:04]} 84. Kxg5 {[%clk 0:00:02.2]} 84...
Ke7 {[%clk 0:00:04.5]} 85. Bd3 {[%clk 0:00:02]} 85... Ke6 {[%clk 0:00:04.4]} 86.
Bc4+ {[%clk 0:00:02.6]} 86... Kd6 {[%clk 0:00:04.2]} 87. Kf5 {[%clk 0:00:03.2]}
87... Ke7 {[%clk 0:00:03.2]} 88. g5 {[%clk 0:00:03.2]} 88... Kf8 {[%clk
0:00:03.7]} 89. Kf6 {[%clk 0:00:02.8]} 89... Bh4 {[%clk 0:00:04]} 90. Kf5 {[%clk
0:00:01.6]} 90... Kg7 {[%clk 0:00:03.7]} 91. g6 {[%clk 0:00:01.8]} 91... Bf6
{[%clk 0:00:03.5]} 92. Bd3 {[%clk 0:00:01.1]} 92... Be7 {[%clk 0:00:03.3]} 93.
Be4 {[%clk 0:00:02]} 93... Bd6 {[%clk 0:00:02.9]} 94. Bd3 {[%clk 0:00:02.9]}
94... Bc7 {[%clk 0:00:03.1]} 95. Be4 {[%clk 0:00:03.8]} 95... Bb8 {[%clk
0:00:03.4]} 96. Ke6 {[%clk 0:00:04.3]} 96... Bc7 {[%clk 0:00:03.8]} 97. Kd7
{[%clk 0:00:04.8]} 97... Bb6 {[%clk 0:00:04]} 98. Kc6 {[%clk 0:00:04.9]} 98...
Bd8 {[%clk 0:00:04.3]} 99. Kd6 {[%clk 0:00:05]} 99... Bb6 {[%clk 0:00:04.2]}
100. Kxe5 {[%clk 0:00:04.6]} 100... Bc5 {[%clk 0:00:04.8]} 101. Kd5 {[%clk
0:00:03.8]} 101... Bb4 {[%clk 0:00:05.7]} 102. Kxd4 {[%clk 0:00:04.1]} 102...
Be1 {[%clk 0:00:06.6]} 103. Kc4 {[%clk 0:00:04.6]} 103... Bb4 {[%clk 0:00:07.5]}
104. Bd3 {[%clk 0:00:05.1]} 104... Be1 {[%clk 0:00:08.4]} 105. Be4 {[%clk
0:00:06]} 105... Bb4 {[%clk 0:00:09.3]} 106. Bd3 {[%clk 0:00:06.9]} 106... Ba3
{[%clk 0:00:09.3]} 107. Be4 {[%clk 0:00:07.8]} 107... Bb4 {[%clk 0:00:10.2]}
1/2-1/2

[Event "Late-Titled-Tuesday-Blitz-April-23-2024"]
[Site "Chess.com"]
[Date "2024.04.23"]
[Round "4"]
[White "HamedWafa4"]
[Black "MetiForce"]
[Result "0-1"]
[WhiteElo "2728"]
[BlackElo "2931"]
[TimeControl "180+1"]
[EndTime "14:36:13 PDT"]
[Termination "MetiForce won by resignation"]

1. e4 {[%clk 0:03:00.9]} 1... c5 {[%clk 0:02:42.5]} 2. Nf3 {[%clk 0:02:57.9]}
2... d6 {[%clk 0:02:40.5]} 3. Bb5+ {[%clk 0:02:55.7]} 3... Bd7 {[%clk
0:02:40.5]} 4. Bxd7+ {[%clk 0:02:54.6]} 4... Nxd7 {[%clk 0:02:41.4]} 5. O-O
{[%clk 0:02:54.4]} 5... Ngf6 {[%clk 0:02:41.2]} 6. Re1 {[%clk 0:02:54.5]} 6...
e6 {[%clk 0:02:41.6]} 7. c3 {[%clk 0:02:54]} 7... Be7 {[%clk 0:02:42.1]} 8. d4
{[%clk 0:02:54.4]} 8... O-O {[%clk 0:02:42.9]} 9. h3 {[%clk 0:02:54.2]} 9... Rc8
{[%clk 0:02:42.6]} 10. Bf4 {[%clk 0:02:51.9]} 10... cxd4 {[%clk 0:02:41.5]} 11.
cxd4 {[%clk 0:02:51.3]} 11... d5 {[%clk 0:02:39.5]} 12. e5 {[%clk 0:02:51]}
12... Ne4 {[%clk 0:02:40]} 13. Nbd2 {[%clk 0:02:51.2]} 13... Nxd2 {[%clk
0:02:36.8]} 14. Bxd2 {[%clk 0:02:50.3]} 14... Qb6 {[%clk 0:02:37.5]} 15. Qa4
{[%clk 0:02:43.3]} 15... Rc6 {[%clk 0:02:34.5]} 16. h4 {[%clk 0:02:33.3]} 16...
Rfc8 {[%clk 0:02:29.4]} 17. h5 {[%clk 0:02:29.1]} 17... h6 {[%clk 0:02:29.6]}
18. Rab1 {[%clk 0:02:05.4]} 18... Nf8 {[%clk 0:02:28.9]} 19. Re3 {[%clk
0:02:04]} 19... Qa6 {[%clk 0:02:12.4]} 20. Qd1 {[%clk 0:01:51.4]} 20... Qxa2
{[%clk 0:02:10.5]} 21. Ra3 {[%clk 0:01:50.9]} 21... Bxa3 {[%clk 0:02:09.5]} 0-1

[Event "Late-Titled-Tuesday-Blitz-April-23-2024"]
[Site "Chess.com"]
[Date "2024.04.23"]
[Round "4"]
[White "topotun"]
[Black "Msb2"]
[Result "1/2-1/2"]
[WhiteElo "2855"]
[BlackElo "3056"]
[TimeControl "180+1"]
[EndTime "14:37:06 PDT"]
[Termination "Game drawn by repetition"]

1. e4 {[%clk 0:03:00.9]} 1... e6 {[%clk 0:03:00.2]} 2. d4 {[%clk 0:03:00.9]}
2... d5 {[%clk 0:03:00.7]} 3. Nd2 {[%clk 0:03:01.4]} 3... c5 {[%clk 0:03:01]} 4.
exd5 {[%clk 0:03:01.5]} 4... Qxd5 {[%clk 0:03:01.9]} 5. Ngf3 {[%clk 0:03:02]}
5... cxd4 {[%clk 0:03:02.7]} 6. Bc4 {[%clk 0:03:02.3]} 6... Qd6 {[%clk
0:03:03.5]} 7. O-O {[%clk 0:03:02.8]} 7... Nf6 {[%clk 0:03:04]} 8. Nb3 {[%clk
0:03:03]} 8... Nc6 {[%clk 0:03:04.7]} 9. Nbxd4 {[%clk 0:03:03]} 9... Nxd4 {[%clk
0:03:05.6]} 10. Nxd4 {[%clk 0:03:03.9]} 10... Be7 {[%clk 0:03:05.8]} 11. Re1
{[%clk 0:03:02.4]} 11... O-O {[%clk 0:03:05.9]} 12. c3 {[%clk 0:03:02.1]} 12...
Qc7 {[%clk 0:03:06.5]} 13. Bb3 {[%clk 0:02:59.6]} 13... b6 {[%clk 0:03:06.9]}
14. Bg5 {[%clk 0:02:49.9]} 14... Bb7 {[%clk 0:02:57.6]} 15. Qd3 {[%clk
0:02:25.6]} 15... Rad8 {[%clk 0:02:51.4]} 16. Qh3 {[%clk 0:02:21.8]} 16... Bd5
{[%clk 0:02:24.6]} 17. Bc2 {[%clk 0:02:18.7]} 17... g6 {[%clk 0:02:25]} 18. Qh4
{[%clk 0:02:14.9]} 18... Kg7 {[%clk 0:02:10.9]} 19. Bh6+ {[%clk 0:01:29.5]}
19... Kg8 {[%clk 0:02:09.8]} 20. Bg5 {[%clk 0:01:25.6]} 20... Kg7 {[%clk
0:02:10.1]} 21. Bh6+ {[%clk 0:01:24.6]} 21... Kh8 {[%clk 0:02:10.7]} 22. Bxf8
{[%clk 0:01:23.2]} 22... Rxf8 {[%clk 0:02:11.6]} 23. Qg3 {[%clk 0:01:14]} 23...
Bd6 {[%clk 0:02:09.2]} 24. Qh4 {[%clk 0:01:13.5]} 24... Be7 {[%clk 0:02:05.8]}
25. Qg3 {[%clk 0:01:12.5]} 25... Bd6 {[%clk 0:02:06.3]} 26. Qh4 {[%clk
0:01:11.6]} 26... Be7 {[%clk 0:02:01.8]} 1/2-1/2

[Event "Late-Titled-Tuesday-Blitz-April-23-2024"]
[Site "Chess.com"]
[Date "2024.04.23"]
[Round "4"]
[White "wanyaland"]
[Black "gmcorrales"]
[Result "0-1"]
[WhiteElo "2441"]
[BlackElo "2852"]
[TimeControl "180+1"]
[EndTime "14:37:29 PDT"]
[Termination "gmcorrales won by resignation"]

1. d4 {[%clk 0:02:56.6]} 1... Nf6 {[%clk 0:02:59.9]} 2. c4 {[%clk 0:02:56.5]}
2... e6 {[%clk 0:02:57.8]} 3. g3 {[%clk 0:02:56.5]} 3... d5 {[%clk 0:02:52.2]}
4. Bg2 {[%clk 0:02:56.8]} 4... Be7 {[%clk 0:02:52.8]} 5. Nf3 {[%clk 0:02:57]}
5... O-O {[%clk 0:02:53.2]} 6. O-O {[%clk 0:02:57.2]} 6... dxc4 {[%clk
0:02:50.5]} 7. Qc2 {[%clk 0:02:57.2]} 7... a6 {[%clk 0:02:50.8]} 8. a4 {[%clk
0:02:55.9]} 8... Bd7 {[%clk 0:02:46.5]} 9. Bg5 {[%clk 0:02:55.7]} 9... Bc6
{[%clk 0:02:39.7]} 10. Qxc4 {[%clk 0:02:49.6]} 10... Bd5 {[%clk 0:02:38.9]} 11.
Qc2 {[%clk 0:02:49.1]} 11... Be4 {[%clk 0:02:39]} 12. Qc1 {[%clk 0:02:48.4]}
12... h6 {[%clk 0:02:38.5]} 13. Bxf6 {[%clk 0:02:47.8]} 13... Bxf6 {[%clk
0:02:39.4]} 14. Nc3 {[%clk 0:02:47.9]} 14... Bh7 {[%clk 0:02:36.5]} 15. e4
{[%clk 0:02:44.1]} 15... Nc6 {[%clk 0:02:06.8]} 16. e5 {[%clk 0:02:34.1]} 16...
Be7 {[%clk 0:02:03.6]} 17. Rd1 {[%clk 0:02:34.5]} 17... Nb4 {[%clk 0:02:03.4]}
18. Rd2 {[%clk 0:02:32]} 18... c6 {[%clk 0:02:03.4]} 19. Qd1 {[%clk 0:02:31.6]}
19... a5 {[%clk 0:02:03.4]} 20. Qe2 {[%clk 0:02:25.4]} 20... Qb6 {[%clk
0:02:01.1]} 21. Ne4 {[%clk 0:02:21.4]} 21... Rfd8 {[%clk 0:01:42.7]} 22. h4
{[%clk 0:02:21.4]} 22... Rd7 {[%clk 0:01:40.5]} 23. Rad1 {[%clk 0:02:20.4]}
23... Rad8 {[%clk 0:01:40.4]} 24. g4 {[%clk 0:02:16.9]} 24... Nd5 {[%clk
0:01:29.8]} 25. Qe1 {[%clk 0:02:08.5]} 25... Bb4 {[%clk 0:01:26.2]} 26. g5
{[%clk 0:02:05.2]} 26... h5 {[%clk 0:01:24.6]} 27. Bf1 {[%clk 0:02:03.4]} 27...
Bxd2 {[%clk 0:01:23.2]} 28. Rxd2 {[%clk 0:02:02.6]} 28... Qb4 {[%clk 0:01:18.4]}
29. Qd1 {[%clk 0:01:58.4]} 29... Bxe4 {[%clk 0:01:17.6]} 0-1

[Event "Late-Titled-Tuesday-Blitz-April-23-2024"]
[Site "Chess.com"]
[Date "2024.04.23"]
[Round "4"]
[White "Ajedrez_con_German"]
[Black "stasOR4ik"]
[Result "1-0"]
[WhiteElo "2657"]
[BlackElo "2449"]
[TimeControl "180+1"]
[EndTime "14:37:39 PDT"]
[Termination "Ajedrez_con_German won by resignation"]

1. a3 {[%clk 0:02:58.5]} 1... d5 {[%clk 0:02:58.7]} 2. e3 {[%clk 0:02:54.9]}
2... e5 {[%clk 0:02:58.9]} 3. d4 {[%clk 0:02:50.3]} 3... exd4 {[%clk 0:02:56.9]}
4. exd4 {[%clk 0:02:50.3]} 4... Bd6 {[%clk 0:02:57.1]} 5. c4 {[%clk 0:02:47.8]}
5... dxc4 {[%clk 0:02:54.4]} 6. Bxc4 {[%clk 0:02:47.4]} 6... Nc6 {[%clk
0:02:53.7]} 7. Nf3 {[%clk 0:02:46.6]} 7... Nf6 {[%clk 0:02:50.4]} 8. h3 {[%clk
0:02:42.1]} 8... h6 {[%clk 0:02:50.6]} 9. O-O {[%clk 0:02:41.8]} 9... O-O {[%clk
0:02:50.7]} 10. Nc3 {[%clk 0:02:42.1]} 10... Bf5 {[%clk 0:02:48.1]} 11. Re1
{[%clk 0:02:39.8]} 11... a6 {[%clk 0:02:47.8]} 12. Ne5 {[%clk 0:02:32.5]} 12...
Bxe5 {[%clk 0:02:38.7]} 13. dxe5 {[%clk 0:02:32.2]} 13... Qxd1 {[%clk
0:02:39.1]} 14. Nxd1 {[%clk 0:02:29]} 14... Ne4 {[%clk 0:02:35.7]} 15. Bf4
{[%clk 0:01:52.2]} 15... Rad8 {[%clk 0:02:25.2]} 16. Ne3 {[%clk 0:01:49.5]}
16... Be6 {[%clk 0:02:22.9]} 17. Bf1 {[%clk 0:01:39]} 17... Rd2 {[%clk
0:02:13.8]} 18. Nc4 {[%clk 0:01:26.6]} 18... Rd4 {[%clk 0:02:01.3]} 19. Rac1
{[%clk 0:01:18.1]} 19... Bxc4 {[%clk 0:01:32]} 20. Rxc4 {[%clk 0:01:15.8]} 20...
Nd2 {[%clk 0:01:32.6]} 21. Rxd4 {[%clk 0:01:11.2]} 21... Nxf1 {[%clk 0:01:32.8]}
22. Rdd1 {[%clk 0:01:02.9]} 22... g5 {[%clk 0:01:32.6]} 1-0

[Event "Late-Titled-Tuesday-Blitz-April-23-2024"]
[Site "Chess.com"]
[Date "2024.04.23"]
[Round "4"]
[White "BardArtem"]
[Black "chucksterf10"]
[Result "0-1"]
[WhiteElo "2809"]
[BlackElo "2616"]
[TimeControl "180+1"]
[EndTime "14:37:54 PDT"]
[Termination "chucksterf10 won by checkmate"]

1. e4 {[%clk 0:03:00.9]} 1... a6 {[%clk 0:02:54.3]} 2. d4 {[%clk 0:02:58.1]}
2... c6 {[%clk 0:02:54.6]} 3. c4 {[%clk 0:02:47.3]} 3... d5 {[%clk 0:02:54.4]}
4. cxd5 {[%clk 0:02:48.2]} 4... cxd5 {[%clk 0:02:55.3]} 5. exd5 {[%clk
0:02:48.9]} 5... Nf6 {[%clk 0:02:55]} 6. Nc3 {[%clk 0:02:45.7]} 6... Nxd5 {[%clk
0:02:54.9]} 7. Nf3 {[%clk 0:02:44.7]} 7... Nc6 {[%clk 0:02:54.2]} 8. Bc4 {[%clk
0:02:44.3]} 8... Nxc3 {[%clk 0:02:51.6]} 9. bxc3 {[%clk 0:02:31.4]} 9... e6
{[%clk 0:02:51.5]} 10. O-O {[%clk 0:02:30.2]} 10... Bd6 {[%clk 0:02:49.9]} 11.
Bd3 {[%clk 0:02:30.4]} 11... h6 {[%clk 0:02:48.7]} 12. Re1 {[%clk 0:02:30.4]}
12... O-O {[%clk 0:02:47.9]} 13. Bc2 {[%clk 0:02:29.7]} 13... Qc7 {[%clk
0:02:31]} 14. Qd3 {[%clk 0:02:22.2]} 14... f5 {[%clk 0:02:31.1]} 15. Bb3 {[%clk
0:02:09.9]} 15... Na5 {[%clk 0:01:30.5]} 16. Bxe6+ {[%clk 0:02:05.8]} 16... Bxe6
{[%clk 0:01:31.4]} 17. Rxe6 {[%clk 0:02:06.4]} 17... Rae8 {[%clk 0:01:31.9]} 18.
Rxe8 {[%clk 0:01:57]} 18... Rxe8 {[%clk 0:01:32.8]} 19. Qxf5 {[%clk 0:01:56]}
19... Qxc3 {[%clk 0:01:24.3]} 20. Ne5 {[%clk 0:00:48.5]} 20... Qe1# {[%clk
0:01:21.2]} 0-1

[Event "Late-Titled-Tuesday-Blitz-April-23-2024"]
[Site "Chess.com"]
[Date "2024.04.23"]
[Round "4"]
[White "GothamChess"]
[Black "micke12a"]
[Result "1-0"]
[WhiteElo "2697"]
[BlackElo "2436"]
[TimeControl "180+1"]
[EndTime "14:38:00 PDT"]
[Termination "GothamChess won by resignation"]

1. e4 {[%clk 0:03:00]} 1... c5 {[%clk 0:02:53.9]} 2. Nc3 {[%clk 0:02:53.3]} 2...
d6 {[%clk 0:02:51.4]} 3. d4 {[%clk 0:02:52]} 3... cxd4 {[%clk 0:02:43.3]} 4.
Qxd4 {[%clk 0:02:52.9]} 4... Nc6 {[%clk 0:02:43.8]} 5. Qd2 {[%clk 0:02:51.2]}
5... g6 {[%clk 0:02:44.2]} 6. b3 {[%clk 0:02:51]} 6... Bh6 {[%clk 0:02:44.1]} 7.
f4 {[%clk 0:02:51.3]} 7... Nf6 {[%clk 0:02:43.8]} 8. Bb2 {[%clk 0:02:51.6]} 8...
O-O {[%clk 0:02:44.3]} 9. O-O-O {[%clk 0:02:51.8]} 9... e5 {[%clk 0:02:45.1]}
10. g3 {[%clk 0:02:51.9]} 10... Re8 {[%clk 0:02:43.5]} 11. Kb1 {[%clk
0:02:50.4]} 11... Bg4 {[%clk 0:02:39.4]} 12. Nge2 {[%clk 0:02:48.6]} 12... a5
{[%clk 0:02:16.8]} 13. h3 {[%clk 0:02:42.7]} 13... Bf3 {[%clk 0:02:16.3]} 14.
Rg1 {[%clk 0:02:41.4]} 14... Nxe4 {[%clk 0:02:12.5]} 15. Qe3 {[%clk 0:02:34.4]}
15... Nxc3+ {[%clk 0:01:54]} 16. Qxc3 {[%clk 0:02:34.1]} 16... Bxe2 {[%clk
0:01:39.4]} 17. Bxe2 {[%clk 0:02:33.2]} 17... Nd4 {[%clk 0:01:31.3]} 18. Rxd4
{[%clk 0:02:27.2]} 18... exd4 {[%clk 0:01:18.7]} 19. Qxd4 {[%clk 0:02:28.1]}
19... f6 {[%clk 0:01:08.3]} 20. Bc4+ {[%clk 0:02:28.2]} 20... Kh8 {[%clk
0:01:05.4]} 21. h4 {[%clk 0:02:16.2]} 21... Bg7 {[%clk 0:01:01.5]} 22. h5 {[%clk
0:02:15.1]} 22... gxh5 {[%clk 0:00:42.5]} 23. Qd5 {[%clk 0:02:15.2]} 23... Rc8
{[%clk 0:00:24.5]} 24. Qxh5 {[%clk 0:02:08.6]} 24... Rxc4 {[%clk 0:00:23.9]} 25.
Rh1 {[%clk 0:02:08.1]} 25... h6 {[%clk 0:00:20]} 26. bxc4 {[%clk 0:02:08.5]}
26... Qc7 {[%clk 0:00:18.6]} 27. Qxe8+ {[%clk 0:02:08.4]} 27... Kh7 {[%clk
0:00:19]} 28. Qe4+ {[%clk 0:02:07.7]} 28... Kg8 {[%clk 0:00:19.6]} 29. Ka1
{[%clk 0:02:07.8]} 1-0

[Event "Late-Titled-Tuesday-Blitz-April-23-2024"]
[Site "Chess.com"]
[Date "2024.04.23"]
[Round "4"]
[White "temiksmozg"]
[Black "JG-17"]
[Result "1-0"]
[WhiteElo "2715"]
[BlackElo "2541"]
[TimeControl "180+1"]
[EndTime "14:38:04 PDT"]
[Termination "temiksmozg won by resignation"]

1. e4 {[%clk 0:03:00.9]} 1... c5 {[%clk 0:03:00.1]} 2. Nf3 {[%clk 0:02:59.7]}
2... d6 {[%clk 0:03:00.7]} 3. d4 {[%clk 0:02:59.9]} 3... cxd4 {[%clk 0:03:01.6]}
4. Nxd4 {[%clk 0:03:00.6]} 4... Nf6 {[%clk 0:03:02]} 5. Nc3 {[%clk 0:03:01.1]}
5... g6 {[%clk 0:03:02.6]} 6. Be3 {[%clk 0:03:00.4]} 6... Nc6 {[%clk 0:03:03.1]}
7. f3 {[%clk 0:02:58.3]} 7... h5 {[%clk 0:03:03]} 8. Qd2 {[%clk 0:02:58.5]} 8...
Nxd4 {[%clk 0:03:03.2]} 9. Bxd4 {[%clk 0:02:58]} 9... Bh6 {[%clk 0:03:03.8]} 10.
Qf2 {[%clk 0:02:55.2]} 10... O-O {[%clk 0:03:01.8]} 11. Bxf6 {[%clk 0:02:53.3]}
11... exf6 {[%clk 0:03:01.8]} 12. Bc4 {[%clk 0:02:53.9]} 12... Be6 {[%clk
0:02:55.9]} 13. Nd5 {[%clk 0:02:49.9]} 13... Rc8 {[%clk 0:02:45.2]} 14. Bb3
{[%clk 0:02:49.1]} 14... f5 {[%clk 0:02:29.2]} 15. O-O {[%clk 0:02:47.8]} 15...
fxe4 {[%clk 0:02:19.7]} 16. fxe4 {[%clk 0:02:48.7]} 16... Bxd5 {[%clk
0:02:19.4]} 17. Bxd5 {[%clk 0:02:46.7]} 17... Qb6 {[%clk 0:02:11.7]} 18. Qxb6
{[%clk 0:02:45.1]} 18... axb6 {[%clk 0:02:12.1]} 19. c3 {[%clk 0:02:45.8]} 19...
Rc7 {[%clk 0:02:02.5]} 20. Rf6 {[%clk 0:02:37.3]} 20... Rd8 {[%clk 0:02:00.2]}
21. Rxg6+ {[%clk 0:02:34.2]} 21... Kh7 {[%clk 0:01:59.1]} 22. Rf6 {[%clk
0:02:32.2]} 22... Kg7 {[%clk 0:01:54.6]} 23. Raf1 {[%clk 0:02:27.8]} 23... Rdd7
{[%clk 0:01:53.1]} 24. R6f5 {[%clk 0:02:23.5]} 24... Kg6 {[%clk 0:01:52.2]} 25.
g3 {[%clk 0:02:22]} 25... b5 {[%clk 0:01:51.4]} 26. Bb3 {[%clk 0:02:19.6]} 26...
b4 {[%clk 0:01:41.3]} 27. cxb4 {[%clk 0:02:19.1]} 27... Rc1 {[%clk 0:01:28.8]}
28. Bxf7+ {[%clk 0:02:13]} 28... Kg7 {[%clk 0:01:26.4]} 29. Bxh5 {[%clk
0:02:03.3]} 29... Rdc7 {[%clk 0:01:25.3]} 30. Rxc1 {[%clk 0:01:51.5]} 30...
Rxc1+ {[%clk 0:01:24.7]} 31. Kg2 {[%clk 0:01:51.9]} 31... Rc2+ {[%clk
0:01:24.7]} 32. Rf2 {[%clk 0:01:52.2]} 32... Rc4 {[%clk 0:01:19.7]} 33. Rf7+
{[%clk 0:01:48.3]} 33... Kg8 {[%clk 0:01:18.2]} 34. Rxb7 {[%clk 0:01:49.2]}
34... Rc2+ {[%clk 0:01:16.2]} 35. Kh3 {[%clk 0:01:46.6]} 35... Rxb2 {[%clk
0:01:13.1]} 36. a4 {[%clk 0:01:46.7]} 36... Bd2 {[%clk 0:01:11.8]} 37. b5 {[%clk
0:01:45.9]} 37... Be3 {[%clk 0:01:07.8]} 38. a5 {[%clk 0:01:45.4]} 38... Bg1
{[%clk 0:01:07.8]} 39. a6 {[%clk 0:01:42.5]} 39... Rxh2+ {[%clk 0:01:07.7]} 40.
Kg4 {[%clk 0:01:43.2]} 40... Ra2 {[%clk 0:01:07.3]} 41. Bf7+ {[%clk 0:01:42.7]}
41... Kf8 {[%clk 0:01:07.2]} 42. Bxa2 {[%clk 0:01:43.6]} 1-0